bitfinex/quotes_BTCUSD_20250505
["timestamp","ask_amount","ask_price","bid_price","bid_amount"]
[1746421311112,0.01656211,94715.0,94712.0,0.0166]
[1746421312301,0.01656211,94715.0,94712.0,0.0186]
[1746421312674,0.01656211,94715.0,94712.0,0.002]
[1746421313027,0.01656211,94715.0,94713.0,0.015]
[1746421313280,0.01656211,94715.0,94713.0,0.0162]
[1746421313498,0.01656211,94715.0,94714.0,0.0314]
[1746421314159,0.77036211,94715.0,94714.0,0.0314]
[1746421314693,0.77036211,94715.0,94714.0,0.0324]
[1746421315499,0.77036211,94715.0,94714.0,0.0344]
[1746421316492,0.7538,94715.0,94714.0,0.0344]
[1746421320776,0.77036198,94715.0,94714.0,0.0344]
[1746421323271,0.77036198,94715.0,94714.0,0.003]
[1746421323828,0.77036198,94715.0,94714.0,0.034]
[1746421326463,0.7538,94715.0,94714.0,0.034]
[1746421327293,0.7538,94715.0,94714.0,0.0183]
[1746421327513,0.7538,94715.0,94714.0,0.003]
[1746421329516,0.7538,94715.0,94714.0,0.0347]
[1746421333090,0.7703619,94715.0,94714.0,0.0347]
[1746421336230,0.7538,94715.0,94714.0,0.0347]
[1746421339439,0.77036193,94715.0,94714.0,0.0347]
[1746421339706,0.7538,94715.0,94714.0,0.0347]
[1746421343001,0.77036212,94715.0,94714.0,0.0347]
[1746421346189,0.7538,94715.0,94714.0,0.0347]
[1746421349589,0.77036181,94715.0,94714.0,0.0347]
[1746421349791,0.7538,94715.0,94714.0,0.0347]
[1746421351495,0.4138,94715.0,94714.0,0.003]
[1746421351930,0.4138,94715.0,94714.0,0.0359]
[1746421353461,0.7538,94715.0,94714.0,0.0359]
[1746421353812,0.7528,94715.0,94714.0,0.0359]
[1746421353998,0.7518,94715.0,94714.0,0.0359]
[1746421354607,0.76836156,94715.0,94714.0,0.0359]
[1746421354973,0.80530813,94715.0,94714.0,0.0359]
[1746421355173,0.39350813,94715.0,94714.0,0.0359]
[1746421358837,0.37694657,94715.0,94714.0,0.0359]
[1746421363183,0.39350823,94715.0,94714.0,0.0359]
[1746421364521,0.43285905,94715.0,94714.0,0.0359]
[1746421364756,0.43285905,94715.0,94714.0,0.0194]
[1746421365395,0.43285905,94715.0,94714.0,0.0349]
[1746421366148,0.39350823,94715.0,94714.0,0.0349]
[1746421366349,0.37694657,94715.0,94714.0,0.0349]
[1746421366894,0.78874657,94715.0,94714.0,0.0349]
[1746421367684,0.34,94714.0,94711.0,0.003]
[1746421368933,0.34,94712.0,94705.0,4.549e-05]
[1746421369258,0.34,94712.0,94711.0,0.001]
[1746421369713,0.34,94712.0,94705.0,4.549e-05]
[1746421369913,0.34,94712.0,94711.0,0.001]
[1746421370270,0.34,94712.0,94705.0,4.549e-05]
[1746421370475,0.34,94712.0,94711.0,0.001]
[1746421372025,0.34,94712.0,94705.0,4.549e-05]
[1746421372427,0.34,94712.0,94705.0,0.00104549]
[1746421372572,0.34,94712.0,94705.0,4.549e-05]
[1746421372821,0.34,94710.0,94705.0,4.549e-05]
[1746421373356,0.34,94710.0,94705.0,0.00104549]
[1746421373967,0.34,94710.0,94705.0,0.00204549]
[1746421374509,0.34,94710.0,94705.0,0.01754549]
[1746421374712,0.34,94710.0,94706.0,0.0315]
[1746421375300,0.34,94710.0,94705.0,0.00204549]
[1746421375548,0.34,94710.0,94706.0,0.0315]
[1746421375759,0.34,94710.0,94705.0,4.549e-05]
[1746421376144,0.34,94710.0,94706.0,0.001]
[1746421376720,0.34,94710.0,94707.0,0.0315]
[1746421376918,0.34,94710.0,94705.0,4.549e-05]
[1746421377144,0.34,94710.0,94707.0,0.0315]
[1746421377336,0.34,94710.0,94705.0,4.549e-05]
[1746421377701,0.34,94710.0,94706.0,0.001]
[1746421377906,0.34,94710.0,94708.0,0.0315]
[1746421378587,0.7518,94709.0,94708.0,0.0315]
[1746421379449,0.76836234,94709.0,94708.0,0.0315]
[1746421379662,0.7518,94709.0,94708.0,0.0315]
[1746421379866,0.7518,94709.0,94708.0,0.0325]
[1746421404420,0.7518,94709.0,94708.0,0.0335]
[1746421406131,0.76836224,94709.0,94708.0,0.0335]
[1746421407824,0.35656224,94709.0,94708.0,0.0335]
[1746421409927,0.34,94709.0,94708.0,0.0335]
[1746421412991,0.35656222,94709.0,94708.0,0.0335]
[1746421421144,0.34,94709.0,94708.0,0.0335]
[1746421424222,0.35656211,94709.0,94708.0,0.0335]
[1746421434282,0.34,94709.0,94708.0,0.0335]
[1746421442694,0.3565622,94709.0,94708.0,0.0335]
[1746421445949,0.0165622,94709.0,94708.0,0.14685455]
[1746421446178,0.0165622,94709.0,94708.0,0.1613954]
[1746421447485,0.0165622,94709.0,94708.0,0.1603954]
[1746421447696,0.0165622,94709.0,94708.0,0.1673954]
[1746421449398,0.03768152,94715.0,94714.0,0.1324]
[1746421449846,0.34777837,94729.0,94724.0,0.1]
[1746421450066,0.34777837,94729.0,94724.0,0.116]
[1746421450300,0.39180599,94729.0,94724.0,0.116]
[1746421451522,0.39180599,94729.0,94724.0,0.1]
[1746421451983,0.39280599,94729.0,94724.0,0.1]
[1746421453625,0.01656,94728.0,94724.0,0.1]
[1746421454825,0.01756,94728.0,94724.0,0.1]
[1746421456348,0.01756,94728.0,94720.0,0.1]
[1746421456573,0.01756,94728.0,94724.0,0.1]
[1746421457325,0.01656,94728.0,94724.0,0.1]
[1746421457530,0.01756,94728.0,94724.0,0.1]
[1746421458082,0.01656,94728.0,94724.0,0.1]
[1746421458281,0.01756,94728.0,94719.0,0.1]
[1746421458512,0.01756,94728.0,94724.0,0.1]
[1746421458893,0.001,94728.0,94724.0,0.1]
[1746421459125,0.34,94726.0,94703.0,0.032]
[1746421459306,0.34,94712.0,94697.0,0.033]
[1746421459514,0.34,94705.0,94697.0,0.033]
[1746421460568,0.34,94705.0,94697.0,0.034]
[1746421460804,0.00808981,94705.0,94697.0,0.034]
[1746421461008,0.00808981,94705.0,94697.0,0.035]
[1746421461195,0.34,94709.0,94697.0,0.035]
[1746421461742,0.01656248,94707.0,94697.0,0.035]
[1746421462533,0.01656248,94707.0,94697.0,0.034]
[1746421462783,0.01656248,94707.0,94697.0,0.033]
[1746421462983,0.01656248,94707.0,94697.0,0.035]
[1746421463294,0.01656248,94707.0,94697.0,0.033]
[1746421463518,0.01656248,94707.0,94697.0,0.035]
[1746421469486,0.34,94709.0,94697.0,0.035]
[1746421470303,0.34,94709.0,94697.0,0.033]
[1746421470664,0.34,94709.0,94697.0,0.035]
[1746421473644,0.01656278,94707.0,94697.0,0.035]
[1746421474779,0.01656278,94707.0,94697.0,0.034]
[1746421474982,0.01656278,94707.0,94697.0,0.035]
[1746421475199,0.07962101,94707.0,94697.0,0.035]
[1746421475384,0.01656278,94707.0,94697.0,0.035]
[1746421475537,0.01656278,94707.0,94697.0,0.034]
[1746421476002,0.01656278,94707.0,94697.0,0.035]
[1746421478555,0.34,94709.0,94697.0,0.035]
[1746421479489,0.34,94709.0,94697.0,0.034]
[1746421479908,0.34,94709.0,94697.0,0.035]
[1746421481691,0.01656282,94707.0,94697.0,0.035]
[1746421482842,0.01656282,94707.0,94697.0,0.034]
[1746421483041,0.01656282,94707.0,94697.0,0.035]
[1746421483237,0.01656282,94707.0,94697.0,0.034]
[1746421483665,0.01656282,94707.0,94697.0,0.035]
[1746421486400,0.34,94709.0,94697.0,0.035]
[1746421487222,0.34,94709.0,94697.0,0.034]
[1746421487676,0.34,94709.0,94697.0,0.035]
[1746421488680,0.34,94709.0,94697.0,0.034]
[1746421488813,0.34,94709.0,94697.0,0.035]
[1746421489219,0.01656278,94707.0,94697.0,0.035]
[1746421489997,0.01656278,94707.0,94697.0,0.034]
[1746421490342,0.01656278,94707.0,94697.0,0.035]
[1746421490880,0.34,94709.0,94697.0,0.034]
[1746421491258,0.34,94709.0,94697.0,0.035]
[1746421491930,0.34,94709.0,94697.0,0.034]
[1746421492362,0.34,94709.0,94697.0,0.035]
[1746421492802,0.34,94709.0,94697.0,0.034]
[1746421493381,0.34,94709.0,94697.0,0.035]
[1746421493834,0.01656286,94707.0,94697.0,0.035]
[1746421495047,0.01656286,94707.0,94697.0,0.034]
[1746421495492,0.01656286,94707.0,94697.0,0.035]
[1746421495689,0.01656286,94707.0,94697.0,0.034]
[1746421495874,0.01656286,94707.0,94697.0,0.035]
[1746421496636,0.01656286,94707.0,94700.0,0.0314]
[1746421496840,0.34,94709.0,94703.0,0.0314]
[1746421498753,0.34,94709.0,94703.0,0.0324]
[1746421499877,0.0165624,94708.0,94703.0,0.001]
[1746421500290,0.0165624,94708.0,94703.0,0.002]
[1746421500506,0.0165624,94708.0,94704.0,0.0311]
[1746421500706,0.0165624,94708.0,94703.0,0.002]
[1746421500909,0.0165624,94708.0,94703.0,0.001]
[1746421501124,0.0165624,94708.0,94698.0,0.0311]
[1746421501356,0.0165624,94708.0,94703.0,0.002]
[1746421501575,0.34,94709.0,94704.0,0.0326]
[1746421501759,0.34,94709.0,94703.0,0.002]
[1746421502008,0.34,94709.0,94704.0,0.0164]
[1746421502216,0.34,94709.0,94703.0,0.001]
[1746421502431,0.34,94709.0,94703.0,0.0308]
[1746421502647,0.34,94711.0,94710.0,0.001]
[1746421502889,0.34,94711.0,94710.0,0.0318]
[1746421504287,0.35656123,94711.0,94710.0,0.0318]
[1746421504662,0.01656123,94711.0,94710.0,0.0318]
[1746421506052,0.01656123,94711.0,94710.0,0.0338]
[1746421506205,0.01656123,94711.0,94710.0,0.0358]
[1746421508023,0.39180599,94729.0,94720.0,0.0313]
[1746421509244,0.00213644,94728.0,94720.0,0.0313]
[1746421509376,0.00413644,94728.0,94720.0,0.0313]
[1746421512293,0.01656019,94727.0,94720.0,0.0313]
[1746421513229,0.01756019,94727.0,94720.0,0.0313]
[1746421513857,0.01856019,94727.0,94720.0,0.0313]
[1746421519417,0.002,94727.0,94720.0,0.0313]
[1746421522898,0.01655985,94726.0,94720.0,0.0313]
[1746421524384,0.01855985,94726.0,94720.0,0.0313]
[1746421528504,0.002,94726.0,94720.0,0.0313]
[1746421531660,0.01656017,94725.0,94720.0,0.0313]
[1746421532648,0.01656017,94725.0,94720.0,0.0304]
[1746421532882,0.01656017,94725.0,94719.0,0.001]
[1746421533530,0.01856017,94725.0,94720.0,0.0319]
[1746421533715,0.01756017,94725.0,94721.0,0.0319]
[1746421533923,0.01656017,94725.0,94720.0,0.0319]
[1746421534076,0.01856017,94725.0,94719.0,0.001]
[1746421534273,0.01756017,94725.0,94719.0,0.001]
[1746421534499,0.01756017,94725.0,94721.0,0.0319]
[1746421534700,0.01756017,94725.0,94719.0,0.001]
[1746421534923,0.01856017,94725.0,94719.0,0.001]
[1746421535123,0.01856017,94725.0,94722.0,0.0319]
[1746421535331,0.01856017,94725.0,94720.0,0.0319]
[1746421535487,0.01856017,94725.0,94719.0,0.001]
[1746421535923,0.01856017,94725.0,94721.0,0.0319]
[1746421536129,0.01756017,94725.0,94719.0,0.001]
[1746421536327,0.01856017,94725.0,94719.0,0.001]
[1746421536725,0.01756017,94725.0,94719.0,0.001]
[1746421537100,0.01856017,94725.0,94719.0,0.001]
[1746421537540,0.002,94725.0,94720.0,0.0319]
[1746421537713,0.002,94725.0,94721.0,0.0319]
[1746421537913,0.002,94725.0,94719.0,0.001]
[1746421538132,0.002,94725.0,94721.0,0.0319]
[1746421538328,0.002,94725.0,94720.0,0.0319]
[1746421538476,0.001,94725.0,94719.0,0.001]
[1746421538681,0.001,94725.0,94721.0,0.0319]
[1746421538889,0.00013644,94728.0,94721.0,0.0319]
[1746421539299,0.001,94725.0,94719.0,0.001]
[1746421540127,0.001,94725.0,94716.0,0.0319]
[1746421540351,0.34,94725.0,94716.0,0.0319]
[1746421540566,0.34,94725.0,94716.0,0.0329]
[1746421540735,0.341,94725.0,94716.0,0.0319]
[1746421540940,0.341,94725.0,94717.0,0.001]
[1746421541379,0.342,94725.0,94717.0,0.001]
[1746421541578,0.341,94725.0,94717.0,0.001]
[1746421541920,0.342,94725.0,94717.0,0.001]
[1746421542130,0.01656043,94724.0,94717.0,0.001]
[1746421544013,0.01756043,94724.0,94716.0,0.0319]
[1746421544216,0.01856043,94724.0,94716.0,0.0319]
[1746421544640,0.01856043,94724.0,94717.0,0.001]
[1746421544843,0.01756043,94724.0,94717.0,0.001]
[1746421545288,0.01856043,94724.0,94717.0,0.001]
[1746421546088,0.01756043,94724.0,94717.0,0.001]
[1746421546254,0.01856043,94724.0,94717.0,0.001]
[1746421546589,0.01756043,94724.0,94717.0,0.001]
[1746421547510,0.01856043,94724.0,94717.0,0.001]
[1746421547831,0.002,94724.0,94717.0,0.001]
[1746421550992,0.002,94724.0,94716.0,0.0329]
[1746421551204,0.01656002,94723.0,94717.0,0.001]
[1746421551772,0.01656002,94723.0,94716.0,0.0319]
[1746421553028,0.01756002,94723.0,94716.0,0.0319]
[1746421553264,0.01656002,94723.0,94716.0,0.0319]
[1746421553636,0.01756002,94723.0,94716.0,0.0319]
[1746421554294,0.01856002,94723.0,94716.0,0.0319]
[1746421554448,0.05456415,94722.0,94716.0,0.0319]
[1746421554680,0.34,94722.0,94716.0,0.0319]
[1746421558536,0.33985705,94722.0,94716.0,0.0319]
[1746421562028,0.0165604,94721.0,94709.0,0.0315]
[1746421564879,0.34,94719.0,94709.0,0.0315]
[1746421567146,0.34,94719.0,94709.0,0.0304]
[1746421567568,0.34,94719.0,94710.0,0.0151]
[1746421569575,0.01656082,94717.0,94710.0,0.0151]
[1746421570925,0.34,94719.0,94710.0,0.0151]
[1746421571353,0.34,94719.0,94710.0,0.0161]
[1746421572811,0.34,94719.0,94710.0,0.0171]
[1746421572967,0.34,94719.0,94710.0,0.0161]
[1746421573371,0.34,94719.0,94710.0,0.0151]
[1746421574202,0.0165603,94717.0,94710.0,0.0151]
[1746421575879,0.0165603,94717.0,94710.0,0.0161]
[1746421576409,0.34,94719.0,94710.0,0.0171]
[1746421577331,0.34,94719.0,94710.0,0.0161]
[1746421578631,0.34,94719.0,94710.0,0.0151]
[1746421579342,0.01656027,94717.0,94710.0,0.0151]
[1746421579739,0.34,94719.0,94710.0,0.0151]
[1746421580458,0.34,94719.0,94710.0,0.0161]
[1746421580866,0.34,94719.0,94710.0,0.0151]
[1746421581075,0.34,94719.0,94710.0,0.0161]
[1746421582325,0.34,94719.0,94710.0,0.0151]
[1746421583113,0.01656068,94717.0,94710.0,0.0151]
[1746421584298,0.01656068,94717.0,94710.0,0.0161]
[1746421585695,0.01656068,94717.0,94710.0,0.0171]
[1746421586237,0.34,94719.0,94710.0,0.0171]
[1746421587048,0.34,94719.0,94710.0,0.0161]
[1746421587496,0.34,94719.0,94711.0,0.015]
[1746421589219,0.01656059,94718.0,94711.0,0.015]
[1746421590518,0.34,94719.0,94711.0,0.015]
[1746421593713,0.01656065,94718.0,94711.0,0.015]
[1746421601682,0.34,94719.0,94711.0,0.015]
[1746421604828,0.0165606,94718.0,94711.0,0.015]
[1746421605326,0.0165606,94718.0,94712.0,0.0164]
[1746421605530,0.0165606,94718.0,94717.0,0.04694085]
[1746421605746,0.0165606,94718.0,94717.0,0.04905196]
[1746421606851,0.0165606,94718.0,94717.0,0.05205196]
[1746421607063,0.0165606,94718.0,94717.0,0.04905196]
[1746421607278,0.0165606,94718.0,94717.0,0.05405196]
[1746421607506,0.0165606,94718.0,94717.0,0.12770031]
[1746421607710,0.00013644,94728.0,94727.0,0.55887389]
[1746421609788,0.00013644,94728.0,94727.0,0.56487389]
[1746421609992,0.00013644,94728.0,94727.0,0.66570071]
[1746421610202,0.00013644,94728.0,94727.0,0.67370071]
[1746421610792,0.01669137,94728.0,94727.0,0.67370071]
[1746421611124,0.00013644,94728.0,94727.0,0.67370071]
[1746421611876,0.00013644,94728.0,94727.0,0.36174085]
[1746421614769,0.0166915,94728.0,94727.0,0.36174085]
[1746421617431,0.00013644,94728.0,94727.0,0.36174085]
[1746421620898,0.00013644,94728.0,94727.0,0.71118085]
[1746421621975,0.00013644,94728.0,94727.0,0.92231389]
[1746421622180,0.00013644,94728.0,94727.0,1.02783418]
[1746421624079,0.003,94769.0,94761.0,0.0164]
[1746421624317,0.003,94769.0,94768.0,0.001]
[1746421624561,0.03011183,94769.0,94768.0,0.001]
[1746421624781,0.00307208,94769.0,94768.0,0.001]
[1746421625015,0.03034299,94769.0,94768.0,0.001]
[1746421625206,0.00307208,94769.0,94768.0,0.017]
[1746421625630,0.00307208,94769.0,94768.0,0.018]
[1746421625836,0.0307346,94769.0,94768.0,0.018]
[1746421626046,0.00307208,94769.0,94768.0,0.018]
[1746421626254,0.00307208,94769.0,94768.0,0.03254085]
[1746421626590,0.03002996,94769.0,94768.0,0.03254085]
[1746421626785,0.00307208,94769.0,94768.0,0.03254085]
[1746421628571,0.03070696,94769.0,94768.0,0.03254085]
[1746421629400,0.04725763,94769.0,94768.0,0.03254085]
[1746421629876,0.04725763,94769.0,94768.0,0.002]
[1746421630270,0.06295763,94769.0,94768.0,0.001]
[1746421630522,0.04640696,94769.0,94768.0,0.001]
[1746421630944,0.06020696,94769.0,94768.0,0.001]
[1746421632486,0.04640696,94769.0,94768.0,0.001]
[1746421634686,0.0629579,94769.0,94768.0,0.001]
[1746421636550,0.04640696,94769.0,94768.0,0.001]
[1746421639454,0.06295809,94769.0,94768.0,0.001]
[1746421640865,0.04640696,94769.0,94768.0,0.001]
[1746421643159,0.03070696,94769.0,94768.0,0.001]
[1746421643943,0.04725808,94769.0,94768.0,0.001]
[1746421646486,0.03070696,94769.0,94768.0,0.001]
[1746421649527,0.04725823,94769.0,94768.0,0.001]
[1746421650784,0.03070696,94769.0,94768.0,0.001]
[1746421654676,0.03070696,94769.0,94768.0,0.0167]
[1746421657141,0.03070696,94769.0,94768.0,0.0323]
[1746421657346,0.03070696,94769.0,94768.0,0.0333]
[1746421659547,0.04725778,94769.0,94768.0,0.0333]
[1746421660635,0.03070696,94769.0,94768.0,0.0333]
[1746421663903,0.04725781,94769.0,94768.0,0.0333]
[1746421666422,0.03070696,94769.0,94768.0,0.0333]
[1746421669457,0.04725778,94769.0,94768.0,0.0333]
[1746421670807,0.03070696,94769.0,94768.0,0.0333]
[1746421674125,0.04725769,94769.0,94768.0,0.0333]
[1746421674331,0.04725769,94769.0,94768.0,0.08138187]
[1746421674551,0.04725769,94769.0,94768.0,0.04784085]
[1746421677803,0.03070696,94769.0,94768.0,0.04784085]
[1746421682371,0.04725769,94769.0,94768.0,0.04784085]
[1746421693497,0.04725769,94769.0,94768.0,0.03224085]
[1746421695592,0.03070696,94769.0,94768.0,0.03224085]
[1746421696746,0.03070696,94769.0,94768.0,0.04864085]
[1746421697152,0.03070696,94769.0,94768.0,0.08350494]
[1746421697357,0.03070696,94769.0,94768.0,0.04864085]
[1746421698558,0.04725727,94769.0,94768.0,0.04864085]
[1746421699585,0.03070696,94769.0,94768.0,0.04864085]
[1746421703564,0.04725725,94769.0,94768.0,0.04864085]
[1746421708186,0.03070696,94769.0,94768.0,0.04864085]
[1746421713821,0.04725763,94769.0,94768.0,0.04864085]
[1746421716556,0.03070696,94769.0,94768.0,0.04864085]
[1746421719400,0.04725761,94769.0,94768.0,0.04864085]
[1746421720401,0.04725761,94769.0,94768.0,0.03224085]
[1746421720950,0.04725761,94769.0,94768.0,0.002]
[1746421722394,0.03070696,94769.0,94768.0,0.002]
[1746421723929,0.03070696,94769.0,94768.0,0.017]
[1746421732364,0.03070696,94769.0,94768.0,0.002]
[1746421732970,0.03070696,94769.0,94768.0,0.0185]
[1746421738826,0.04725794,94769.0,94768.0,0.0185]
[1746421746311,0.03070696,94769.0,94768.0,0.0185]
[1746421746703,0.03070696,94769.0,94768.0,0.0348]
[1746421749182,0.04725738,94769.0,94768.0,0.0348]
[1746421749585,0.03070696,94769.0,94768.0,0.0348]
[1746421749871,0.03070696,94769.0,94768.0,0.0185]
[1746421750104,0.03070696,94769.0,94768.0,0.002]
[1746421750509,0.03070696,94769.0,94768.0,0.0186]
[1746421751036,0.03070696,94769.0,94768.0,0.002]
[1746421752815,0.04725729,94769.0,94768.0,0.002]
[1746421756074,0.03070696,94769.0,94768.0,0.002]
[1746421757603,0.05960696,94769.0,94768.0,0.001]
[1746421757823,0.40767797,94769.0,94768.0,0.001]
[1746421759082,0.39960696,94769.0,94768.0,0.001]
[1746421759285,0.38580696,94769.0,94768.0,0.001]
[1746421759492,0.01055264,94763.0,94760.0,0.001]
[1746421760993,0.01055264,94763.0,94758.0,0.34932]
[1746421760994,0.01055286,94761.0,94758.0,0.3337671]
[1746421768116,0.01055286,94761.0,94758.0,0.3502671]
[1746421768320,0.01055286,94761.0,94760.0,0.0165]
[1746421768834,0.01055286,94761.0,94758.0,0.3337671]
[1746421769061,0.01055286,94761.0,94758.0,0.3493671]
[1746421770063,0.02710576,94761.0,94758.0,0.3493671]
[1746421770681,0.02710576,94761.0,94758.0,0.3337671]
[1746421776481,0.01055342,94756.0,94751.0,0.0165]
[1746421776729,0.01055453,94746.0,94744.0,0.04664085]
[1746421776925,0.01055453,94746.0,94745.0,0.04664085]
[1746421778967,0.01055453,94746.0,94745.0,0.04864085]
[1746421779374,0.01055453,94746.0,94745.0,0.04964085]
[1746421779375,0.02710786,94746.0,94745.0,0.04964085]
[1746421784146,0.01055453,94746.0,94745.0,0.04964085]
[1746421790147,0.027108,94746.0,94745.0,0.04964085]
[1746421792534,0.01055453,94746.0,94745.0,0.04964085]
[1746421795773,0.02710784,94746.0,94745.0,0.04964085]
[1746421795937,0.01055453,94746.0,94745.0,0.04964085]
[1746421800202,0.02710783,94746.0,94745.0,0.04964085]
[1746421802855,0.02710783,94746.0,94745.0,0.03404085]
[1746421803855,0.02710783,94746.0,94745.0,0.05064085]
[1746421805282,0.01055453,94746.0,94745.0,0.05064085]
[1746421808332,0.02710787,94746.0,94745.0,0.05064085]
[1746421808679,0.01055453,94746.0,94745.0,0.05064085]
[1746421811697,0.01055453,94746.0,94745.0,0.03404085]
[1746421812821,0.02710744,94746.0,94745.0,0.03404085]
[1746421813426,0.01055453,94746.0,94745.0,0.03404085]
[1746421815196,0.01055453,94746.0,94745.0,0.04934085]
[1746421819993,0.01055453,94746.0,94745.0,0.03404085]
[1746421820568,0.02710792,94746.0,94745.0,0.03404085]
[1746421820845,0.01055453,94746.0,94745.0,0.03404085]
[1746421821216,0.01055453,94746.0,94745.0,0.003]
[1746421821217,0.02675453,94746.0,94745.0,0.003]
[1746421821420,0.03259616,94746.0,94745.0,0.003]
[1746421821600,0.04639616,94746.0,94745.0,0.003]
[1746421822043,0.04055453,94746.0,94745.0,0.003]
[1746421822440,0.04055453,94746.0,94745.0,0.002]
[1746421823246,0.02675453,94746.0,94745.0,0.003]
[1746421823733,0.04330907,94746.0,94745.0,0.001]
[1746421824103,0.04330907,94746.0,94745.0,0.002]
[1746421824424,0.02675453,94746.0,94745.0,0.002]
[1746421825228,0.04777616,94746.0,94745.0,0.002]
[1746421826439,0.03397616,94746.0,94745.0,0.002]
[1746421826939,0.02675453,94746.0,94745.0,0.002]
[1746421829350,0.04330924,94746.0,94745.0,0.002]
[1746421829766,0.02675453,94746.0,94745.0,0.002]
[1746421832584,0.04330935,94746.0,94745.0,0.002]
[1746421832789,0.04330935,94746.0,94735.0,0.3494]
[1746421832790,0.34,94744.0,94735.0,0.345799]
[1746421834027,0.34,94744.0,94735.0,0.002]
[1746421839399,0.01655521,94742.0,94735.0,0.002]
[1746421840279,0.01655521,94742.0,94727.0,0.0156]
[1746421841396,0.01655521,94742.0,94735.0,0.001]
[1746421841598,0.01655521,94742.0,94735.0,0.002]
[1746421841951,0.01655521,94742.0,94735.0,0.001]
[1746421842626,0.01655521,94742.0,94727.0,0.0156]
[1746421842793,0.04921013,94741.0,94735.0,0.001]
[1746421843008,0.04921013,94741.0,94735.0,0.002]
[1746421843219,0.34,94744.0,94735.0,0.002]
[1746421843569,0.34,94744.0,94735.0,0.001]
[1746421843989,0.34,94744.0,94736.0,0.0164]
[1746421845172,0.34,94744.0,94743.0,0.25]
[1746421845850,0.0155,94751.0,94743.0,0.25]
[1746421846637,0.0155,94751.0,94743.0,0.251]
[1746421847135,0.0155,94751.0,94750.0,0.25]
[1746421848153,0.34,94752.0,94750.0,0.25]
[1746421848353,0.001,94751.0,94750.0,0.25]
[1746421848599,0.34,94752.0,94750.0,0.25]
[1746421848756,0.001,94751.0,94750.0,0.25]
[1746421848969,0.34,94752.0,94750.0,0.25]
[1746421849306,0.01655445,94751.0,94750.0,0.25]
[1746421850034,0.01755445,94751.0,94750.0,0.25]
[1746421850802,0.03415445,94751.0,94750.0,0.25]
[1746421854863,0.01755445,94751.0,94750.0,0.25]
[1746421856191,0.001,94751.0,94750.0,0.25]
[1746421860824,0.0175544,94751.0,94750.0,0.25]
[1746421866308,0.001,94751.0,94750.0,0.25]
[1746421869565,0.01755422,94751.0,94750.0,0.25]
[1746421875558,0.001,94751.0,94750.0,0.25]
[1746421878420,0.001,94751.0,94750.0,0.24822993]
[1746421878631,0.01755422,94751.0,94750.0,0.24822993]
[1746421880057,0.01755422,94751.0,94750.0,0.26412993]
[1746421886020,0.001,94751.0,94750.0,0.26412993]
[1746421892638,0.01755424,94751.0,94750.0,0.26412993]
[1746421893046,0.01755424,94751.0,94750.0,0.26074597]
[1746421895781,0.001,94751.0,94750.0,0.26074597]
[1746421900263,0.01755455,94751.0,94750.0,0.26074597]
[1746421904923,0.001,94751.0,94750.0,0.26074597]
[1746421909326,0.01755446,94751.0,94750.0,0.26074597]
[1746421909472,0.001,94751.0,94750.0,0.26074597]
[1746421910420,0.001,94751.0,94750.0,0.27624597]
[1746421912051,0.001,94751.0,94750.0,0.26074597]
[1746421912488,0.0175546,94751.0,94750.0,0.26074597]
[1746421913135,0.08061283,94751.0,94750.0,0.26074597]
[1746421913340,0.0175546,94751.0,94750.0,0.26074597]
[1746421914299,0.001,94751.0,94750.0,0.26074597]
[1746421920648,0.01755445,94751.0,94750.0,0.26074597]
[1746421920857,0.01755445,94751.0,94750.0,0.27634597]
[1746421925915,0.001,94751.0,94750.0,0.27634597]
[1746421926863,0.34,94753.0,94750.0,0.27634597]
[1746421927021,0.34,94753.0,94751.0,0.0321]
[1746421927220,0.34,94753.0,94750.0,0.24584597]
[1746421927638,0.34,94753.0,94752.0,0.0321]
[1746421928246,0.34,94753.0,94752.0,0.2821]
[1746421928811,0.35655299,94753.0,94752.0,0.2821]
[1746421929475,0.35655299,94753.0,94752.0,0.2831]
[1746421929684,0.35655299,94753.0,94752.0,0.2841]
[1746421929892,0.01655299,94753.0,94752.0,0.2841]
[1746421935272,0.37070696,94769.0,94753.0,0.0163]
[1746421935463,0.37070696,94769.0,94754.0,0.0318]
[1746421935668,0.0506253,94768.0,94755.0,0.0155]
[1746421936291,0.37070696,94769.0,94755.0,0.0155]
[1746421936652,0.001,94768.0,94755.0,0.0155]
[1746421936972,0.001,94768.0,94756.0,0.0162]
[1746421937170,0.001,94768.0,94767.0,0.266]
[1746421938596,0.37070696,94769.0,94768.0,0.0163]
[1746421938911,0.37070696,94769.0,94768.0,0.0153]
[1746421939096,0.38725894,94769.0,94768.0,0.2653]
[1746421939435,0.11031717,94769.0,94768.0,0.25]
[1746421939636,0.06375894,94769.0,94768.0,0.25]
[1746421939998,0.04725894,94769.0,94768.0,0.25]
[1746421940522,0.04825894,94769.0,94768.0,0.25]
[1746421944728,0.80005894,94769.0,94768.0,0.25]
[1746421945644,0.78350696,94769.0,94768.0,0.25]
[1746421948684,0.80005947,94769.0,94768.0,0.25]
[1746421949096,0.81625947,94769.0,94768.0,0.14114812]
[1746421949296,0.81625947,94769.0,94768.0,0.08819909]
[1746421949519,0.34,94768.0,94751.0,0.0165]
[1746421949719,0.34,94760.0,94751.0,0.0165]
[1746421950215,0.34,94760.0,94717.0,0.21115495]
[1746421950216,0.4118,94759.0,94735.0,0.0319]
[1746421950397,0.34,94744.0,94735.0,0.0162]
[1746421950562,0.34,94742.0,94729.0,0.0162]
[1746421950768,0.34,94739.0,94729.0,0.0162]
[1746421951872,0.341,94739.0,94729.0,0.0162]